fUSD/lending_fUSD_20260322
["ID","MTS","AMOUNT","RATE_DAILY","PERIOD"]
[408741186,1774183864670,-880.49785584,0.00043671,30]
[408741187,1774183864682,-420.49,0.00043678,120]
[408741188,1774183864694,-150.0,0.00043694,30]
[408741189,1774183864707,-748.85242257,0.000437,120]
[408741190,1774183864720,-193.13939547,0.00043707,30]
[408741191,1774183864733,-246.62813809,0.00043707,30]
[408741192,1774183864746,-153.93761613,0.00043707,30]
[408741193,1774183864759,-270.22810863,0.00043707,30]
[408741194,1774183864771,-524.1018904,0.00043707,30]
[408741195,1774183864784,-202.50518274,0.00043707,30]
[408741196,1774183864796,-150.0,0.00043716,30]
[408741197,1774183864809,-150.0,0.00043724,30]
[408741198,1774183864823,-150.0,0.00043727,30]
[408741199,1774183864836,-150.0,0.0004373,14]
[408741200,1774183864849,-150.0,0.00043736,30]
[408741201,1774183864862,-185.33731451,0.00043751,14]
[408741202,1774183864876,-193.13939547,0.00043756,30]
[408741203,1774183864889,-246.62813809,0.00043756,30]
[408741204,1774183864903,-153.93761613,0.00043756,30]
[408741205,1774183864917,-270.22810863,0.00043756,30]
[408741206,1774183865337,-524.1018904,0.00043756,30]
[408741207,1774183865372,-202.50518274,0.00043756,30]
[408741208,1774183865390,-177.54,0.00043775,2]
[408741209,1774183865401,-283.73,0.00043775,2]
[408741210,1774183865411,-492.78,0.00043775,2]
[408741211,1774183865420,-311.05,0.00043775,2]
[408741212,1774183865429,-151.0,0.00043777,120]
[408741213,1774183865438,-200488.44429609,0.0004378,60]
[408741214,1774183866557,-296.4806941,0.0004378,60]
[408741215,1774183866587,-972.15998328,0.0004378,60]
[408741216,1774183866613,-606.6000014,0.0004378,60]
[408741217,1774183866625,-1843.3999986,0.0004378,60]
[408741218,1774183866637,-392.42156948,0.0004378,60]
[408741219,1774183866662,-415.0,0.00040886,2]
[408741220,1774183866671,-1410.86696782,0.0004378,60]
[408741221,1774183867072,-655.554488,0.00038356,120]
[408741222,1774183867082,-53.615512,0.00038356,120]
[408741223,1774183867095,-601.938976,0.00038356,120]
[408741224,1774183867105,-655.554488,0.000415,120]
[408741225,1774183867115,-655.554488,0.000415,120]
[408741226,1774183867125,-238.63623287,0.00042484,2]
[408741227,1774183867156,-61.36376713,0.00042484,2]
[408741228,1774183867166,-300.0,0.00042484,2]
[408741229,1774183867176,-52387.24509048,0.0004378,60]
[408741230,1774183867410,-4296.75088854,0.00014712,2]
[408741231,1774183867423,-13718.34119757,0.00014712,2]
[408741232,1774183867433,-2000.0,0.000165,2]
[408741233,1774183867443,-2000.0,0.000166,2]
[408741234,1774183867453,-2000.0,0.000167,2]
[408741235,1774183867462,-2000.0,0.000168,2]
[408741236,1774183867473,-2000.0,0.000169,2]
[408741237,1774183867482,-417.11348177,0.00042484,2]
[408741238,1774183867493,-300.0,0.00042484,2]
[408741239,1774183867502,-565.58724016,0.0004378,60]
[408741240,1774183867524,-79296.06458661,0.0004378,60]
[408741241,1774183867614,-12957.25836996,0.0004378,60]
[408741242,1774183962655,204.91,0.00016,120]
[408741243,1774184149796,254.96,0.00016,120]
[408741244,1774184321313,156.0,6.376e-05,2]
[408741245,1774184321521,156.0,6.376e-05,2]
[408741246,1774184336510,173.55,0.00016,120]
[408741247,1774184461195,300.0,9.499e-05,2]
[408741248,1774184474185,10000.0,0.00017,60]
[408741249,1774184489861,10000.0,0.00017,60]
[408741250,1774184506349,10000.0,0.00017,60]
[408741251,1774184530115,894.259,0.00017,60]
[408741252,1774184579293,-150.0,9.5e-05,2]
[408741253,1774184579327,-500.0,9.5e-05,2]
[408741254,1774184579363,-500.0,9.5e-05,2]
[408741255,1774184579398,-500.0,9.5e-05,2]
[408741256,1774184579433,-500.0,9.5e-05,2]
[408741257,1774184579467,-476.06020844,9.5e-05,2]
[408741258,1774184755432,-250.0,9.795e-05,2]
[408741259,1774184755461,-274.70538121,0.00010395,2]
[408741260,1774184883064,261.0,0.00017,60]
[408741261,1774184895054,231.1,0.00016,120]
[408741264,1774185032433,-281.29461879,0.00010612,2]
[408741265,1774185032443,-250.0,0.00011495,2]
[408741266,1774185032452,-250.0,0.00011495,2]
[408741267,1774185032462,-300.0,0.00011506,2]
[408741268,1774185032473,-567.47338044,0.00011507,2]
[408741269,1774185032485,-1073.75,0.00011507,2]
[408741270,1774185032524,-1237.58661956,0.00011507,2]
[408741271,1774185032533,-125.58841229,0.00011673,2]
[408741272,1774185032544,-4874.41158771,0.00011673,2]
[408741273,1774185032553,-166.66,0.000119,2]
[408741274,1774185032563,-166.66,0.00012151,2]
[408741275,1774185032573,-166.66,0.00012402,2]
[408741276,1774185032583,-1200.0,0.00012525,2]
[408741277,1774185032592,-1000.0,0.00012526,2]
[408741278,1774185032602,-150.0,0.00012526,2]
[408741279,1774185032610,-300.0,0.00012526,2]
[408741280,1774185032620,-50894.14,0.00012527,2]
[408741281,1774185032629,-420.0,0.00012637,2]
[408741282,1774185032638,-166.66,0.00012652,2]
[408741283,1774185032648,-173.08979378,0.00012673,2]
[408741284,1774185032657,-24029.17378954,0.00012683,2]
[408741285,1774185032668,-135822.00476492,0.00012683,2]
[408741286,1774185032787,-684031.89916654,0.00012683,2]
[408741287,1774185032799,-555.59417147,0.00012683,2]
[408741288,1774185032823,-1675.51726259,0.00012683,2]
[408741290,1774185038161,-387.75502244,0.00012682,2]
[408741291,1774185038221,-112.24497756,0.00012682,2]
[408741292,1774185038231,-199.23798726,0.00012682,2]
[408741293,1774185038243,-549.60381855,0.00012682,2]
[408741294,1774185038254,-591.69986524,0.00012682,2]
[408741295,1774185038265,-157.14194057,0.00012682,2]
[408741296,1774185038274,-500.0,0.00012682,2]
[408741297,1774185038283,-748.84180581,0.00012682,2]
[408741298,1774185038292,-171.71196741,0.00012682,2]
[408741299,1774185038303,-558.69299275,0.00012682,2]
[408741300,1774185038315,-18.43684565,0.00012682,2]
[408741301,1774185038326,-384.17141746,0.00012682,2]
[408741302,1774185038337,-661.79591174,0.00012682,2]
[408741303,1774185038348,-87.04589407,0.00012682,2]
[408741304,1774185038358,-748.84180581,0.00012682,2]
[408741305,1774185038369,-748.84180581,0.00012682,2]
[408741306,1774185038379,-748.84180581,0.00012682,2]
[408741307,1774185038388,-748.84180581,0.00012682,2]
[408741308,1774185038397,-748.84180581,0.00012682,2]
[408741309,1774185038407,-748.84180581,0.00012682,2]
[408741310,1774185038417,-748.84180581,0.00012682,2]
[408741311,1774185038429,-748.84180581,0.00012682,2]
[408741312,1774185038438,-748.84180581,0.00012682,2]
[408741313,1774185038448,-748.84180581,0.00012682,2]
[408741314,1774185038457,-748.84180581,0.00012682,2]
[408741315,1774185038466,-748.84180581,0.00012682,2]
[408741316,1774185038475,-748.84180581,0.00012682,2]
[408741317,1774185038484,-748.84180581,0.00012682,2]
[408741318,1774185038493,-748.84180581,0.00012682,2]
[408741319,1774185038502,-748.84180581,0.00012682,2]
[408741320,1774185038512,-748.84180581,0.00012682,2]
[408741322,1774185038522,-748.84180581,0.00012682,2]
[408741325,1774185038532,-748.84180581,0.00012682,2]
[408741326,1774185038541,-748.84180581,0.00012682,2]
[408741328,1774185038551,-748.84180581,0.00012682,2]
[408741331,1774185038560,-748.84180581,0.00012682,2]
[408741332,1774185038569,-748.84180581,0.00012682,2]
[408741334,1774185038579,-748.84180581,0.00012682,2]
[408741337,1774185038589,-748.84180581,0.00012682,2]
[408741339,1774185038598,-748.84180581,0.00012682,2]
[408741341,1774185038607,-748.84180581,0.00012682,2]
[408741342,1774185038616,-748.84180581,0.00012682,2]
[408741345,1774185038626,-748.84180581,0.00012682,2]
[408741347,1774185038635,-748.84180581,0.00012682,2]
[408741348,1774185038644,-748.84180581,0.00012682,2]
[408741351,1774185038653,-748.84180581,0.00012682,2]
[408741353,1774185038664,-748.84180581,0.00012682,2]
[408741355,1774185038673,-748.84180581,0.00012682,2]
[408741356,1774185038683,-748.84180581,0.00012682,2]
[408741358,1774185038692,-748.84180581,0.00012682,2]
[408741360,1774185038701,-748.84180581,0.00012682,2]
[408741362,1774185038711,-748.84180581,0.00012682,2]
[408741365,1774185038720,-748.84180581,0.00012682,2]
[408741366,1774185038729,-748.84180581,0.00012682,2]
[408741369,1774185038739,-748.84180581,0.00012682,2]
[408741371,1774185038753,-748.84180581,0.00012682,2]
[408741373,1774185038763,-748.84180581,0.00012682,2]
[408741375,1774185038772,-748.84180581,0.00012682,2]
[408741376,1774185038781,-748.84180581,0.00012682,2]
[408741379,1774185038793,-748.84180581,0.00012682,2]
[408741381,1774185038803,-748.84180581,0.00012682,2]
[408741383,1774185038812,-748.84180581,0.00012682,2]
[408741384,1774185038823,-748.84180581,0.00012682,2]
[408741386,1774185038832,-748.84180581,0.00012682,2]
[408741388,1774185038841,-748.84180581,0.00012682,2]
[408741390,1774185038849,-44861.79611285,0.00012683,2]
[408741393,1774185038862,-6552.18,0.00012683,2]
[408741396,1774185038880,-847.0,0.00012683,2]
[408741406,1774185038972,-1154.38291172,0.00012683,2]
[408741408,1774185038983,-2405.90528155,0.00012683,2]
[408741410,1774185038994,-752229.47512665,0.00012683,2]
[408741412,1774185039005,-6543.9,0.00012683,2]
[408741414,1774185039016,-97504.46267925,0.00012683,2]
[408741416,1774185039031,-131733.01333292,0.00012683,2]
[408741418,1774185039040,-11086.55,0.00012783,2]
[408741420,1774185039049,-150.99,0.00012783,2]
[408741422,1774185039059,-7477.96,0.00012783,2]
[408741424,1774185039068,-3974.1,0.00012783,2]
[408741426,1774185039077,-299.99,0.00012783,2]
[408741428,1774185039087,-6169.26070065,0.00012783,2]
[408741554,1774185040507,-290.63870871,0.00012783,2]
[408741556,1774185040520,-3540.09059064,0.00012783,2]
[408741558,1774185040529,-1834.45,0.00012861,2]
[408741560,1774185040539,-166.66,0.00012903,2]
[408741562,1774185040549,-166.66,0.00013153,2]
[408741564,1774185040558,-273.36,0.00013278,2]
[408741566,1774185040567,-12594.32711419,0.00013284,2]
[408741568,1774185040576,-3527.0394,0.00013284,2]
[408741570,1774185040585,-2500.0,0.00013285,2]
[408741572,1774185040594,-4293.95604055,0.00013325,2]
[408741574,1774185040604,-10174.24147383,0.00013325,2]
[408741576,1774185040613,-500.0,0.00013342,2]
[408741578,1774185040623,-500.0,0.00013373,2]
[408741580,1774185040632,-500.0,0.00013373,2]
[408741582,1774185040641,-574.62700701,0.00013373,2]
[408741584,1774185040651,-500.0,0.00013373,2]
[408741586,1774185040661,-500.0,0.00013373,2]
[408741588,1774185040670,-153312.42,0.00013385,2]
[408741590,1774185040679,-3240.0,0.00013425,2]
[408741592,1774185040690,-200.0,0.000136,4]
[408741594,1774185040700,-255.0,0.00013616,2]
[408741596,1774185040710,-500.0,0.00013698,2]
[408741598,1774185040719,-500.0,0.00013698,2]
[408741600,1774185040728,-500.0,0.00013698,2]
[408741602,1774185040737,-500.0,0.00013698,2]
[408741603,1774185040749,-500.0,0.00013698,2]
[408741605,1774185040759,-200.0,0.00013699,2]
[408741607,1774185040768,-500.0,0.00013699,2]
[408741609,1774185040777,-390.12270077,0.00013699,2]
[408741611,1774185040787,-500.44177829,0.00013699,2]
[408741613,1774185040797,-150.0,0.000137,2]
[408741615,1774185040806,-500.0,0.000137,5]
[408741617,1774185040816,-420.0,0.00013743,2]
[408741619,1774185040826,-1680.0,0.00013777,2]
[408741621,1774185040835,-800.0,0.000138,5]
[408741623,1774185040844,-1100.0,0.000139,5]
[408741625,1774185040853,-1000.0,0.00013921,2]
[408741627,1774185040863,-733.94746042,0.00013921,2]
[408741629,1774185040872,-277.83720946,0.00013973,2]
[408741631,1774185040881,-579.89459538,0.00013973,2]
[408741633,1774185040890,-500.0,0.00014,2]
[408741635,1774185040899,-501.0,0.00014,2]
[408741637,1774185040909,-501.0,0.00014,2]
[408741639,1774185040918,-501.0,0.00014,2]
[408741641,1774185040927,-151.0,0.0001401,2]
[408741643,1774185040937,-151.0,0.0001401,2]
[408741645,1774185040946,-151.0,0.0001401,2]
[408741647,1774185040956,-151.0,0.0001401,2]
[408741649,1774185040965,-151.0,0.0001401,2]
[408741651,1774185040974,-151.0,0.0001401,2]
[408741653,1774185040983,-500.0,0.00014012,2]
[408741655,1774185040993,-500.0,0.00014012,2]
[408741657,1774185041002,-500.0,0.00014012,2]
[408741660,1774185041012,-500.0,0.00014012,2]
[408741662,1774185041021,-500.0,0.00014012,2]
[408741664,1774185041031,-500.0,0.00014012,2]
[408741665,1774185041041,-500.0,0.00014012,2]
[408741667,1774185041050,-500.0,0.00014012,2]
[408741669,1774185041060,-500.0,0.00014012,2]
[408741671,1774185041069,-500.0,0.00014012,2]
[408741673,1774185041078,-500.0,0.00014012,2]
[408741675,1774185041088,-500.0,0.00014012,2]
[408741677,1774185041098,-500.0,0.00014012,2]
[408741679,1774185041107,-500.0,0.00014012,2]
[408741681,1774185041116,-500.0,0.00014012,2]
[408741683,1774185041126,-500.0,0.00014012,2]
[408741685,1774185041137,-500.0,0.00014012,2]
[408741687,1774185041146,-188.47970349,0.00014012,2]
[408741690,1774185041156,-500.0,0.00014012,2]
[408741691,1774185041166,-500.0,0.00014012,2]
[408741694,1774185041175,-500.0,0.00014012,2]
[408741696,1774185041184,-500.0,0.00014012,2]
[408741697,1774185041194,-500.0,0.00014012,2]
[408741699,1774185041203,-645.93,0.00014012,2]
[408741701,1774185041212,-500.0,0.00014012,2]
[408741703,1774185041222,-500.0,0.00014012,2]
[408741705,1774185041231,-571.85993226,0.00014012,2]
[408741707,1774185041240,-500.0,0.00014012,2]
[408741709,1774185041249,-485.30482118,0.00014012,2]
[408741711,1774185041258,-500.0,0.00014012,2]
[408741713,1774185041267,-500.0,0.00014012,2]
[408741715,1774185041276,-500.0,0.00014012,2]
[408741717,1774185041286,-500.0,0.00014012,2]
[408741719,1774185041295,-390.47678169,0.00014012,2]
[408741721,1774185041305,-250.0,0.00014022,2]
[408741723,1774185041314,-500.0,0.00014073,2]
[408741725,1774185041324,-500.0,0.00014073,2]
[408741727,1774185041333,-500.0,0.00014073,2]
[408741729,1774185041342,-500.0,0.00014073,2]
[408741731,1774185041352,-347.47666717,0.00014073,2]
[408741733,1774185041362,-500.43058459,0.00014073,2]
[408741735,1774185041371,-500.0,0.00014073,2]
[408741737,1774185041380,-500.74920901,0.00014073,2]
[408741739,1774185041390,-500.4848322,0.00014073,2]
[408741741,1774185041399,-500.0,0.00014073,2]
[408741743,1774185041408,-500.0,0.00014073,2]
[408741745,1774185041418,-500.0,0.00014073,2]
[408741747,1774185041428,-500.0,0.00014073,2]
[408741749,1774185041438,-500.0,0.00014073,2]
[408741751,1774185041447,-500.0,0.00014073,2]
[408741753,1774185041456,-500.0,0.00014073,2]
[408741755,1774185041465,-500.0,0.00014073,2]
[408741757,1774185041475,-500.0,0.00014073,2]
[408741759,1774185041484,-500.0,0.00014073,2]
[408741761,1774185041494,-500.0,0.00014073,2]
[408741763,1774185041503,-500.0,0.00014073,2]
[408741765,1774185041512,-500.55967201,0.00014073,2]
[408741767,1774185041522,-500.0,0.00014073,2]
[408741769,1774185041531,-500.0,0.00014073,2]
[408741771,1774185041540,-2180.76,0.000141,2]
[408741773,1774185041549,-1625.51,0.000141,2]
[408741775,1774185041558,-1837.12,0.000141,2]
[408741777,1774185041567,-2070.05,0.000141,2]
[408741779,1774185041576,-1205.46,0.000141,2]
[408741781,1774185041585,-60000.0,0.00014115,2]
[408741783,1774185041595,-500.0,0.00014173,2]
[408741785,1774185041604,-500.70382414,0.00014173,2]
[408741787,1774185041613,-500.0,0.00014173,2]
[408741789,1774185041624,-1000.0,0.00014247,2]
[408741791,1774185041634,-150.49957673,0.00014449,2]
[408741793,1774185041643,-335.73,0.000146,2]
[408741795,1774185041652,-2021.81,0.000146,2]
[408741797,1774185041662,-2502.35,0.000146,2]
[408741799,1774185041671,-10174.2414738,0.00014604,2]
[408741801,1774185041680,-1000.0,0.00014621,2]
[408741803,1774185041690,-1000.0,0.00014621,2]
[408741805,1774185041699,-998.52273734,0.00014621,2]
[408741807,1774185041708,-1001.53007131,0.00014621,2]
[408741809,1774185041718,-1000.0,0.00014621,2]
[408741811,1774185041728,-1000.0,0.00014621,2]
[408741813,1774185041737,-1000.0,0.00014621,2]
[408741815,1774185041751,-1000.0,0.00014621,2]
[408741817,1774185041760,-1000.0,0.00014621,2]
[408741818,1774185041769,-538.91632234,0.00014621,2]
[408741820,1774185041779,-507.92423982,0.00014621,2]
[408741822,1774185041791,-505.99225948,0.00014621,2]
[408741824,1774185041800,-803.0796662,0.00014621,2]
[408741826,1774185041810,-500.67270798,0.00014621,2]
[408741828,1774185041820,-1000.0,0.00014621,2]
[408741830,1774185041830,-1000.0,0.00014621,2]
[408741832,1774185041839,-1000.0,0.00014621,2]
[408741834,1774185041849,-166.66,0.0001468,2]
[408741836,1774185041858,-502.54227332,0.00014721,2]
[408741838,1774185041868,-713.64434561,0.00014795,2]
[408741840,1774185041879,-433.0,0.00014805,2]
[408741842,1774185041888,-160.0,0.00014858,2]
[408741844,1774185041898,-160.0,0.00014858,2]
[408741846,1774185041908,-979.16666667,0.00014858,2]
[408741848,1774185041917,-160.0,0.00014861,2]
[408741850,1774185041927,-12594.32711413,0.00014905,2]
[408741852,1774185041936,-500.0,0.00014917,2]
[408741854,1774185041945,-250.0,0.00015,2]
[408741856,1774185041955,-587.0,0.00015079,2]
[408741858,1774185041964,-2351.0,0.00015155,2]
[408741860,1774185041973,-166.66,0.00015165,2]
[408741862,1774185041983,-1500.0,0.00015168,2]
[408741864,1774185041992,-1158.78645597,0.00015168,2]
[408741866,1774185042000,-1500.0,0.00015168,2]
[408741868,1774185042009,-1500.0,0.00015168,2]
[408741869,1774185042019,-419.75064279,0.00015168,2]
[408741871,1774185042029,-722.68518983,0.00015168,2]
[408741873,1774185042039,-1209.15946236,0.00015168,2]
[408741875,1774185042049,-1500.0,0.00015168,2]
[408741877,1774185042059,-500.0,0.00015305,2]
[408741879,1774185042068,-910.0,0.00015425,2]
[408741881,1774185042078,-910.0,0.00015438,2]
[408741883,1774185042087,-168.0,0.00015448,2]
[408741885,1774185042097,-910.0,0.00015467,2]
[408741887,1774185042107,-396.630378,0.00015484,7]
[408741889,1774185042116,-169.689126,0.00015484,7]
[408741891,1774185042126,-198.321561,0.00015484,7]
[408741893,1774185042136,-166.66,0.00015649,2]
[408741895,1774185042146,-910.0,0.00015659,2]
[408741897,1774185042155,-500.0,0.00015716,2]
[408741899,1774185042165,-1000.0,0.00015716,2]
[408741901,1774185042174,-573.03260881,0.00015716,2]
[408741903,1774185042184,-2960.40658792,0.00015733,2]
[408741905,1774185042193,-165.89980804,0.00015733,2]
[408741907,1774185042203,-1574.18400216,0.00015733,2]
[408741909,1774185042212,-910.0,0.00015776,2]
[408741911,1774185042222,-173.08979378,0.0001579,2]
[408741913,1774185042232,-357.596847,0.00015794,7]
[408741915,1774185042241,-326.259407,0.00015794,7]
[408741917,1774185042250,-168.0,0.00015795,2]
[408741919,1774185042259,-151.0,0.00015797,2]
[408741921,1774185042268,-151.0,0.00015797,2]
[408741923,1774185042280,-151.0,0.00015797,2]
[408741925,1774185042289,-1500000.0,0.000158,2]
[408741927,1774185042299,-901.36,0.000158,2]
[408741929,1774185042308,-500.0,0.00015833,3]
[408741931,1774185042317,-910.0,0.00015845,2]
[408741933,1774185042327,-10174.2414738,0.00015882,2]
[408741935,1774185042336,-910.0,0.00015897,2]
[408741937,1774185042346,-1484.31656132,0.000159,2]
[408741939,1774185042355,-31720.00690847,0.000159,2]
[408741941,1774185042364,-1400.0,0.000159,5]
[408741943,1774185042373,-250.23234824,0.00015945,2]
[408741945,1774185042383,-289.346329,0.00015976,7]
[408741947,1774185042392,-1205.46,0.00016,2]
[408741949,1774185042401,-910.0,0.00016006,2]
[408741951,1774185042411,-910.0,0.00016066,2]
[408741953,1774185042420,-736.0,0.00016083,2]
[408741955,1774185042429,-9999.99,0.00016116,2]
[408741957,1774185042439,-166.66,0.00016134,2]
[408741959,1774185042448,-910.0,0.00016186,2]
[408741961,1774185042457,-2070.05,0.000162,2]
[408741963,1774185042466,-167.137459,0.00016226,7]
[408741965,1774185042475,-215.22971,0.00016226,7]
[408741967,1774185042485,-400.771676,0.00016226,7]
[408741969,1774185042494,-169.112413,0.00016226,7]
[408741971,1774185042503,-910.0,0.00016257,2]
[408741973,1774185042512,-910.0,0.00016302,2]
[408741975,1774185042522,-168.0,0.00016312,2]
[408741977,1774185042531,-168.0,0.00016314,2]
[408741979,1774185042540,-1625.51,0.000164,2]
[408741981,1774185042549,-1837.12,0.000164,2]
[408741983,1774185042558,-910.0,0.00016409,2]
[408741985,1774185042567,-500.0,0.00016438,2]
[408741987,1774185042576,-500.0,0.00016438,2]
[408741989,1774185042585,-500.0,0.00016438,2]
[408741991,1774185042594,-500.0,0.00016438,2]
[408741993,1774185042603,-500.0,0.00016438,2]
[408741995,1774185042612,-500.0,0.00016438,2]
[408741997,1774185042621,-500.0,0.00016438,2]
[408741999,1774185042631,-500.0,0.00016438,2]
[408742001,1774185042641,-500.0,0.00016438,2]
[408742003,1774185042650,-12594.32711413,0.00016526,2]
[408742005,1774185042659,-823.0,0.00016545,2]
[408742007,1774185042668,-910.0,0.00016557,2]
[408742009,1774185042677,-166.66,0.00016618,2]
[408742011,1774185042687,-418.19,0.0001666,2]
[408742013,1774185042696,-3292.0,0.0001667,2]
[408742015,1774185042705,-910.0,0.00016693,2]
[408742017,1774185042714,-910.0,0.00016699,2]
[408742019,1774185042723,-500.0,0.0001675,4]
[408742021,1774185042733,-2000.0,0.000168,2]
[408742023,1774185042748,-150.0,0.0001683,7]
[408742025,1774185042758,-168.0,0.0001684,2]
[408742027,1774185042767,-910.0,0.00016891,2]
[408742029,1774185042777,-2180.76,0.000169,2]
[408742031,1774185042787,-150.741,0.000169,2]
[408742033,1774185042797,-2000.0,0.000169,2]
[408742035,1774185042806,-168.0,0.00016901,2]
[408742037,1774185042815,-168.0,0.00016917,2]
[408742039,1774185042825,-168.0,0.00016999,2]
[408742041,1774185042834,-356.0,0.00017,2]
[408742043,1774185042844,-300.0,0.00017,2]
[408742045,1774185042854,-250.0,0.00017,2]
[408742047,1774185042863,-200.0,0.00017,2]
[408742049,1774185042873,-982.13078782,0.00017,30]
[408742051,1774185042883,-166.66,0.00017103,2]
[408742053,1774185042893,-10174.2414738,0.00017161,2]
[408742055,1774185042904,-292.0,0.00017486,2]
[408742057,1774185042914,-901.36,0.000175,2]
[408742059,1774185042924,-500.0,0.00017667,5]
[408742061,1774185042934,-4293.95604048,0.0001785,2]
[408742063,1774185042944,-11086.55,0.00017896,2]
[408742065,1774185042954,-12594.32711413,0.00018147,2]
[408742067,1774185042964,-1152.0,0.00018153,2]
[408742070,1774185042973,-4609.0,0.00018337,2]
[408742072,1774185042983,-1205.46,0.000184,2]
[408742074,1774185042993,-10174.2414738,0.00018439,2]
[408742076,1774185043003,-330.525315,0.00018581,7]
[408742078,1774185043012,-500.0,0.00018583,6]
[408742080,1774185043022,-670.494088,0.00018952,7]
[408742082,1774185043032,-407.824259,0.00018952,7]
[408742084,1774185043041,-350.0,0.00019,2]
[408742086,1774185043051,-150.71,0.00019178,2]
[408742088,1774185043060,-150.0,0.00019178,2]
[408742090,1774185043070,-150.0,0.00019178,2]
[408742092,1774185043079,-58648.31,0.000192,2]
[408742094,1774185043089,-751.446893,0.00019471,7]
[408742096,1774185043098,-211.390516,0.00019471,7]
[408742098,1774185043107,-500.0,0.000195,6]
[408742099,1774185043117,-186.40036,0.00019605,2]
[408742101,1774185043127,-10174.2414738,0.00019718,2]
[408742103,1774185043136,-250.0,0.00019726,2]
[408742106,1774185043146,-12594.32711413,0.00019768,2]
[408742109,1774185043155,-273.36,0.0001988,2]
[408742111,1774185043164,-1613.0,0.00019917,2]
[408742113,1774185043174,-500.0,0.0002,2]
[408742115,1774185043183,-1625.51,0.0002,2]
[408742117,1774185043193,-1837.12,0.0002,2]
[408742119,1774185043202,-303.0,0.0002,2]
[408742121,1774185043211,-2070.05,0.0002,2]
[408742123,1774185043220,-151.4858,0.000201,2]
[408742125,1774185043230,-901.36,0.000201,2]
[408742127,1774185043239,-6453.0,0.00020171,2]
[408742129,1774185043250,-350.0,0.00020274,2]
[408742131,1774185043259,-500.0,0.00020417,7]
[408742133,1774185043268,-450.0,0.00020822,2]
[408742136,1774185043277,-2180.76,0.000209,2]
[408742138,1774185043286,-10174.2414738,0.00020996,2]
[408742140,1774185043296,-400.0,0.00021,2]
[408742141,1774185043305,-881.57656971,0.00021002,2]
[408742142,1774185043314,-150.0,0.00021039,2]
[408742143,1774185043323,-288.554882,0.00021041,2]
[408742144,1774185043333,-1484.31656128,0.00021067,2]
[408742145,1774185043342,-1205.46,0.000212,7]
[408742146,1774185043352,-500.0,0.00021333,8]
[408742147,1774185043361,-550.0,0.0002137,2]
[408742148,1774185043370,-12594.32711413,0.00021388,2]
[408742149,1774185043380,-355.42,0.00021754,14]
[408742150,1774185043389,-2258.0,0.00021853,2]
[408742151,1774185043398,-225.9,0.0002189,2]
[408742152,1774185043408,-5000.0,0.00021918,2]
[408742153,1774185043417,-800.0,0.00021918,2]
[408742154,1774185043426,-246.820544,0.0002196,14]
[408742155,1774185043435,-500.0,0.00022,2]
[408742156,1774185043444,-500.0,0.00022,2]
[408742157,1774185043455,-694.99529243,0.00022,2]
[408742158,1774185043464,-500.0,0.00022,2]
[408742159,1774185043473,-500.0,0.00022,2]
[408742160,1774185043482,-984.30250844,0.00022,2]
[408742161,1774185043492,-573.0,0.00022,2]
[408742162,1774185043502,-726.35,0.00022,30]
[408742163,1774185043511,-150.71,0.00022178,2]
[408742164,1774185043521,-2417.0,0.00022188,2]
[408742165,1774185043530,-500.0,0.0002225,9]